[Event "Early-Titled-Tuesday-Blitz-November-28-2023"]
[Site "Chess.com"]
[Date "2023.11.28"]
[Round "1"]
[White "vladoboch"]
[Black "CSB7"]
[Result "1-0"]
[WhiteElo "2436"]
[BlackElo "2724"]
[TimeControl "180+1"]
[EndTime "8:07:04 PST"]
[Termination "vladoboch won by resignation"]

1. e4 {[%clk 0:02:57.5]} 1... c5 {[%clk 0:02:59.2]} 2. Nf3 {[%clk 0:02:57.1]}
2... e6 {[%clk 0:02:59.5]} 3. g3 {[%clk 0:02:56.6]} 3... d5 {[%clk 0:02:58.4]}
4. exd5 {[%clk 0:02:56.1]} 4... exd5 {[%clk 0:02:59.3]} 5. d4 {[%clk 0:02:56.8]}
5... cxd4 {[%clk 0:02:46.5]} 6. Nxd4 {[%clk 0:02:52.3]} 6... Nc6 {[%clk
0:02:42.5]} 7. Bg2 {[%clk 0:02:46]} 7... Bc5 {[%clk 0:02:42.6]} 8. Be3 {[%clk
0:02:33.1]} 8... Qb6 {[%clk 0:02:08.3]} 9. Nxc6 {[%clk 0:01:26.2]} 9... Bxe3
{[%clk 0:01:57.9]} 10. O-O {[%clk 0:01:05.6]} 10... bxc6 {[%clk 0:01:49.9]} 11.
Re1 {[%clk 0:00:53.9]} 11... Qxb2 {[%clk 0:01:33.5]} 12. Rxe3+ {[%clk
0:00:53.8]} 12... Be6 {[%clk 0:01:34.2]} 13. Nd2 {[%clk 0:00:49.7]} 13... Ne7
{[%clk 0:01:27.9]} 14. Rb1 {[%clk 0:00:43.6]} 14... Qxa2 {[%clk 0:01:23.2]} 15.
Reb3 {[%clk 0:00:21.4]} 15... O-O {[%clk 0:01:18.9]} 16. Ra1 {[%clk 0:00:20.9]}
16... Qxa1 {[%clk 0:00:40.6]} 17. Qxa1 {[%clk 0:00:20.8]} 17... Nf5 {[%clk
0:00:39.1]} 18. Ra3 {[%clk 0:00:20.5]} 18... h5 {[%clk 0:00:32.8]} 19. Rxa7
{[%clk 0:00:20.6]} 19... Rab8 {[%clk 0:00:33.3]} 20. h4 {[%clk 0:00:19.4]} 20...
Rfe8 {[%clk 0:00:28]} 21. Nf3 {[%clk 0:00:19.2]} 21... f6 {[%clk 0:00:21.1]} 22.
Nd4 {[%clk 0:00:18.1]} 22... Nxd4 {[%clk 0:00:19.8]} 23. Qxd4 {[%clk 0:00:19]}
23... Bf7 {[%clk 0:00:17.9]} 24. Qc5 {[%clk 0:00:18.4]} 24... Re2 {[%clk
0:00:14.3]} 25. Re7 {[%clk 0:00:09.1]} 25... Rd2 {[%clk 0:00:09.8]} 26. Kh2
{[%clk 0:00:06.5]} 26... Rb2 {[%clk 0:00:08.3]} 27. Qa7 {[%clk 0:00:04.1]} 27...
Bg6 {[%clk 0:00:05.2]} 28. Rxg7+ {[%clk 0:00:04.4]} 1-0

[Event "Early-Titled-Tuesday-Blitz-November-28-2023"]
[Site "Chess.com"]
[Date "2023.11.28"]
[Round "1"]
[White "masenik"]
[Black "TigrVShlyape"]
[Result "0-1"]
[WhiteElo "2512"]
[BlackElo "2982"]
[TimeControl "180+1"]
[EndTime "8:07:05 PST"]
[Termination "TigrVShlyape won by resignation"]

1. e4 {[%clk 0:03:00.9]} 1... c5 {[%clk 0:02:58.6]} 2. Nf3 {[%clk 0:02:58]} 2...
e6 {[%clk 0:02:58.4]} 3. d4 {[%clk 0:02:58.4]} 3... cxd4 {[%clk 0:02:58.5]} 4.
Nxd4 {[%clk 0:02:59.1]} 4... a6 {[%clk 0:02:59]} 5. Bd3 {[%clk 0:02:57.5]} 5...
g6 {[%clk 0:02:57.9]} 6. O-O {[%clk 0:02:55.1]} 6... Bg7 {[%clk 0:02:58.3]} 7.
Nf3 {[%clk 0:02:41.4]} 7... Ne7 {[%clk 0:02:55.2]} 8. Nc3 {[%clk 0:02:38.6]}
8... Nbc6 {[%clk 0:02:54.8]} 9. Re1 {[%clk 0:02:28.6]} 9... O-O {[%clk
0:02:53.9]} 10. Bg5 {[%clk 0:02:19.9]} 10... h6 {[%clk 0:02:51.8]} 11. Bf4
{[%clk 0:02:17.6]} 11... d5 {[%clk 0:02:49.2]} 12. exd5 {[%clk 0:02:13.7]} 12...
Nxd5 {[%clk 0:02:48.6]} 13. Nxd5 {[%clk 0:02:13.8]} 13... Qxd5 {[%clk
0:02:44.2]} 14. c3 {[%clk 0:01:53.3]} 14... Rd8 {[%clk 0:02:37.1]} 15. Be4
{[%clk 0:01:48.5]} 15... Qc5 {[%clk 0:02:12.6]} 16. Qc1 {[%clk 0:01:37.4]} 16...
Kh7 {[%clk 0:01:58.9]} 17. a4 {[%clk 0:01:21.9]} 17... a5 {[%clk 0:01:32.3]} 18.
Qe3 {[%clk 0:01:17.5]} 18... Qxe3 {[%clk 0:01:28.8]} 19. Bxe3 {[%clk 0:01:18.4]}
19... Bd7 {[%clk 0:01:27.6]} 20. Bb6 {[%clk 0:01:17.3]} 20... Rdc8 {[%clk
0:01:26.9]} 21. Rad1 {[%clk 0:01:17.2]} 21... Be8 {[%clk 0:01:26.8]} 22. g4
{[%clk 0:01:00]} 22... Ra6 {[%clk 0:01:23.5]} 23. Be3 {[%clk 0:00:56.3]} 23...
Raa8 {[%clk 0:01:18.1]} 24. h3 {[%clk 0:00:55.7]} 24... Rd8 {[%clk 0:00:56.9]}
25. Bb6 {[%clk 0:00:51.7]} 25... Rxd1 {[%clk 0:00:56]} 26. Rxd1 {[%clk
0:00:52.6]} 26... Ne7 {[%clk 0:00:52.2]} 27. Bc2 {[%clk 0:00:29.3]} 27... Nd5
{[%clk 0:00:49.7]} 28. Bd4 {[%clk 0:00:29.2]} 28... Rc8 {[%clk 0:00:43.3]} 29.
Bxg7 {[%clk 0:00:22.7]} 29... Kxg7 {[%clk 0:00:42.8]} 30. Kf1 {[%clk 0:00:21.6]}
30... g5 {[%clk 0:00:42.6]} 31. h4 {[%clk 0:00:21.6]} 31... gxh4 {[%clk
0:00:34.5]} 32. Nxh4 {[%clk 0:00:21.2]} 32... Rc4 {[%clk 0:00:33.6]} 33. f3
{[%clk 0:00:11.9]} 33... Ne3+ {[%clk 0:00:32.9]} 34. Ke2 {[%clk 0:00:11.5]}
34... Nxc2 {[%clk 0:00:28.6]} 35. Kd3 {[%clk 0:00:09.6]} 35... Bxa4 {[%clk
0:00:22]} 36. b3 {[%clk 0:00:06.2]} 36... Bxb3 {[%clk 0:00:21.1]} 37. Rb1 {[%clk
0:00:06.4]} 37... a4 {[%clk 0:00:20.9]} 0-1

[Event "Early-Titled-Tuesday-Blitz-November-28-2023"]
[Site "Chess.com"]
[Date "2023.11.28"]
[Round "1"]
[White "ActorXu"]
[Black "MFBerna"]
[Result "1-0"]
[WhiteElo "2844"]
[BlackElo "2461"]
[TimeControl "180+1"]
[EndTime "8:07:05 PST"]
[Termination "ActorXu won by resignation"]

1. e4 {[%clk 0:03:00.9]} 1... c5 {[%clk 0:02:54.8]} 2. Nf3 {[%clk 0:03:01.2]}
2... Nc6 {[%clk 0:02:54.3]} 3. Bb5 {[%clk 0:03:01.1]} 3... d6 {[%clk 0:02:53.8]}
4. O-O {[%clk 0:03:00.9]} 4... Bd7 {[%clk 0:02:53.1]} 5. Re1 {[%clk 0:03:01.2]}
5... g6 {[%clk 0:02:51.5]} 6. c3 {[%clk 0:03:00.2]} 6... Bg7 {[%clk 0:02:51.5]}
7. d4 {[%clk 0:02:59.8]} 7... cxd4 {[%clk 0:02:50.3]} 8. cxd4 {[%clk 0:02:59.6]}
8... a6 {[%clk 0:02:46.9]} 9. Bf1 {[%clk 0:02:48.8]} 9... Nf6 {[%clk 0:02:45]}
10. h3 {[%clk 0:02:47.9]} 10... O-O {[%clk 0:02:44.9]} 11. Nc3 {[%clk
0:02:48.2]} 11... Rc8 {[%clk 0:02:38.8]} 12. Be3 {[%clk 0:02:45.7]} 12... b5
{[%clk 0:02:37.7]} 13. a3 {[%clk 0:02:40.4]} 13... Na5 {[%clk 0:02:37.9]} 14. e5
{[%clk 0:02:37.2]} 14... Ne8 {[%clk 0:02:37.4]} 15. Ne4 {[%clk 0:02:30.9]} 15...
Nc4 {[%clk 0:02:32.1]} 16. Bxc4 {[%clk 0:02:30]} 16... Rxc4 {[%clk 0:02:31.8]}
17. b3 {[%clk 0:02:24]} 17... Rc8 {[%clk 0:02:29.9]} 18. Bg5 {[%clk 0:02:19.5]}
18... dxe5 {[%clk 0:02:15.7]} 19. dxe5 {[%clk 0:02:16.6]} 19... h6 {[%clk
0:02:07.4]} 20. Bh4 {[%clk 0:02:14.9]} 20... g5 {[%clk 0:02:07.7]} 21. Bg3
{[%clk 0:02:10.6]} 21... Be6 {[%clk 0:01:58.3]} 22. Nd4 {[%clk 0:02:06.6]} 22...
Nc7 {[%clk 0:01:53.2]} 23. Nc5 {[%clk 0:01:48.1]} 23... Qd5 {[%clk 0:01:27.4]}
24. Ndxe6 {[%clk 0:01:32]} 24... Qxd1 {[%clk 0:01:17]} 25. Rexd1 {[%clk
0:01:31.8]} 25... Nxe6 {[%clk 0:01:17.2]} 26. Nxa6 {[%clk 0:01:28.9]} 26... Rc3
{[%clk 0:01:17.1]} 27. Nb4 {[%clk 0:01:05.2]} 27... Rxb3 {[%clk 0:01:09]} 28.
Nc6 {[%clk 0:01:05]} 28... Ra8 {[%clk 0:00:57.5]} 29. Nxe7+ {[%clk 0:00:59.5]}
29... Kf8 {[%clk 0:00:57.8]} 30. Nf5 {[%clk 0:00:59.5]} 30... Rbxa3 {[%clk
0:00:49.4]} 31. Rab1 {[%clk 0:00:53.4]} 31... Rb8 {[%clk 0:00:42.9]} 32. Rd7
{[%clk 0:00:49.5]} 32... Nc5 {[%clk 0:00:31.6]} 33. e6 {[%clk 0:00:38.2]} 33...
Nxd7 {[%clk 0:00:21.3]} 34. Bd6+ {[%clk 0:00:31.8]} 34... Kg8 {[%clk 0:00:18.1]}
35. exd7 {[%clk 0:00:32]} 35... Raa8 {[%clk 0:00:13.9]} 36. Bxb8 {[%clk
0:00:32]} 36... Rxb8 {[%clk 0:00:14.8]} 37. Rc1 {[%clk 0:00:32.4]} 37... Bf6
{[%clk 0:00:12.7]} 38. Rc8+ {[%clk 0:00:31.8]} 1-0

[Event "Early-Titled-Tuesday-Blitz-November-28-2023"]
[Site "Chess.com"]
[Date "2023.11.28"]
[Round "1"]
[White "MITerryble"]
[Black "FunnyDuck66"]
[Result "1-0"]
[WhiteElo "2957"]
[BlackElo "2506"]
[TimeControl "180+1"]
[EndTime "8:07:06 PST"]
[Termination "MITerryble won by resignation"]

1. d4 {[%clk 0:02:53.2]} 1... Nf6 {[%clk 0:02:58.7]} 2. Bg5 {[%clk 0:02:52.6]}
2... d5 {[%clk 0:02:55.4]} 3. e3 {[%clk 0:02:52.4]} 3... c6 {[%clk 0:02:54.4]}
4. Bd3 {[%clk 0:02:48]} 4... e6 {[%clk 0:02:43.9]} 5. c3 {[%clk 0:02:40.1]} 5...
Be7 {[%clk 0:02:43.6]} 6. Nd2 {[%clk 0:02:40.1]} 6... O-O {[%clk 0:02:42]} 7.
Ngf3 {[%clk 0:02:40]} 7... Nbd7 {[%clk 0:02:40.3]} 8. h3 {[%clk 0:02:31.3]} 8...
Qc7 {[%clk 0:02:29.5]} 9. e4 {[%clk 0:02:22]} 9... dxe4 {[%clk 0:02:23]} 10.
Nxe4 {[%clk 0:02:22.5]} 10... h6 {[%clk 0:02:10.2]} 11. Bh4 {[%clk 0:02:21.1]}
11... Nxe4 {[%clk 0:01:54.1]} 12. Bxe7 {[%clk 0:02:20.6]} 12... Re8 {[%clk
0:01:54.3]} 13. Ba3 {[%clk 0:02:19.6]} 13... Nef6 {[%clk 0:01:51.1]} 14. O-O
{[%clk 0:02:17.6]} 14... e5 {[%clk 0:01:49.8]} 15. Re1 {[%clk 0:02:17.8]} 15...
e4 {[%clk 0:01:48.4]} 16. Nh4 {[%clk 0:01:59]} 16... exd3 {[%clk 0:01:46.8]} 17.
Rxe8+ {[%clk 0:01:59.9]} 17... Nxe8 {[%clk 0:01:46.6]} 18. Nf5 {[%clk
0:02:00.8]} 18... Ndf6 {[%clk 0:01:31]} 19. Ne7+ {[%clk 0:01:53.2]} 19... Kh8
{[%clk 0:01:26.8]} 20. Qxd3 {[%clk 0:01:54.1]} 20... Be6 {[%clk 0:01:19.9]} 21.
Re1 {[%clk 0:01:52]} 21... Nd6 {[%clk 0:01:11.8]} 22. Ng6+ {[%clk 0:01:51.9]}
22... Kg8 {[%clk 0:01:12.2]} 23. Ne5 {[%clk 0:01:36.2]} 23... Re8 {[%clk
0:01:04.4]} 24. b3 {[%clk 0:01:35.1]} 24... Nb5 {[%clk 0:01:00.2]} 25. Bc1
{[%clk 0:01:32.9]} 25... Rd8 {[%clk 0:00:58]} 26. Qg3 {[%clk 0:01:32.7]} 26...
Kh7 {[%clk 0:00:50.4]} 27. Bf4 {[%clk 0:01:26.6]} 27... Qa5 {[%clk 0:00:48.1]}
28. b4 {[%clk 0:01:07.1]} 28... Qa3 {[%clk 0:00:39.4]} 29. Re3 {[%clk
0:01:06.1]} 29... Qxa2 {[%clk 0:00:25.8]} 30. Qh4 {[%clk 0:01:04.3]} 30... Qb1+
{[%clk 0:00:24.7]} 31. Kh2 {[%clk 0:01:04.1]} 31... Qf5 {[%clk 0:00:24.8]} 32.
Nf3 {[%clk 0:00:38.9]} 32... Rd5 {[%clk 0:00:18.1]} 33. Be5 {[%clk 0:00:37.7]}
33... Qg6 {[%clk 0:00:15.6]} 34. c4 {[%clk 0:00:33.3]} 34... Rd7 {[%clk
0:00:14.7]} 35. cxb5 {[%clk 0:00:33.3]} 35... cxb5 {[%clk 0:00:14.8]} 36. Bg3
{[%clk 0:00:32.4]} 36... Nd5 {[%clk 0:00:14.1]} 37. Ne5 {[%clk 0:00:32.1]} 37...
Qf6 {[%clk 0:00:05.6]} 38. Qe4+ {[%clk 0:00:29.5]} 38... Bf5 {[%clk 0:00:05.6]}
39. Nxd7 {[%clk 0:00:30]} 39... Qg6 {[%clk 0:00:05.9]} 40. Nf8+ {[%clk 0:00:29]}
1-0

[Event "Early-Titled-Tuesday-Blitz-November-28-2023"]
[Site "Chess.com"]
[Date "2023.11.28"]
[Round "1"]
[White "Grammnik"]
[Black "RETURNOFTHELAGGER"]
[Result "0-1"]
[WhiteElo "2358"]
[BlackElo "2667"]
[TimeControl "180+1"]
[EndTime "8:07:07 PST"]
[Termination "RETURNOFTHELAGGER won on time"]

1. e4 {[%clk 0:02:54]} 1... c5 {[%clk 0:02:50.2]} 2. Nf3 {[%clk 0:02:52.7]} 2...
d6 {[%clk 0:02:50.5]} 3. d4 {[%clk 0:02:50.7]} 3... cxd4 {[%clk 0:02:51.4]} 4.
Nxd4 {[%clk 0:02:49.6]} 4... Nf6 {[%clk 0:02:51.8]} 5. Nc3 {[%clk 0:02:46.4]}
5... a6 {[%clk 0:02:52]} 6. f3 {[%clk 0:02:42.4]} 6... e5 {[%clk 0:02:51.2]} 7.
Nb3 {[%clk 0:02:41.1]} 7... h5 {[%clk 0:02:52.1]} 8. Be3 {[%clk 0:02:39]} 8...
Be7 {[%clk 0:02:52.1]} 9. Qd2 {[%clk 0:02:38.6]} 9... Be6 {[%clk 0:02:51]} 10.
Nd5 {[%clk 0:02:33.7]} 10... Bxd5 {[%clk 0:02:46.4]} 11. exd5 {[%clk 0:02:33.4]}
11... Nbd7 {[%clk 0:02:46.7]} 12. O-O-O {[%clk 0:02:29.1]} 12... Rc8 {[%clk
0:02:42.9]} 13. Na5 {[%clk 0:02:21.9]} 13... Qc7 {[%clk 0:02:23]} 14. Kb1 {[%clk
0:02:17.7]} 14... Nb6 {[%clk 0:02:21.8]} 15. c4 {[%clk 0:02:08.4]} 15... O-O
{[%clk 0:02:19.2]} 16. Rc1 {[%clk 0:01:58.9]} 16... Nfd7 {[%clk 0:02:18.2]} 17.
g4 {[%clk 0:01:55]} 17... hxg4 {[%clk 0:02:14.7]} 18. fxg4 {[%clk 0:01:51.6]}
18... e4 {[%clk 0:02:15.2]} 19. Bd4 {[%clk 0:01:42.9]} 19... Bf6 {[%clk
0:02:11.8]} 20. g5 {[%clk 0:01:36.3]} 20... Bxd4 {[%clk 0:02:07]} 21. Qxd4
{[%clk 0:01:35.8]} 21... Rfe8 {[%clk 0:01:47.6]} 22. Bh3 {[%clk 0:01:21.7]}
22... Re5 {[%clk 0:01:47.2]} 23. Rhg1 {[%clk 0:01:08.5]} 23... Rce8 {[%clk
0:01:40]} 24. Rg3 {[%clk 0:00:48.1]} 24... Nf8 {[%clk 0:01:33.3]} 25. Re1 {[%clk
0:00:41]} 25... Na4 {[%clk 0:01:32.2]} 26. Nb3 {[%clk 0:00:30.4]} 26... b5
{[%clk 0:01:27.8]} 27. cxb5 {[%clk 0:00:27.6]} 27... axb5 {[%clk 0:01:28.7]} 28.
Rc1 {[%clk 0:00:26.4]} 28... Qb7 {[%clk 0:01:22.3]} 29. Rc6 {[%clk 0:00:22.7]}
29... e3 {[%clk 0:01:16.7]} 30. Rg1 {[%clk 0:00:13]} 30... Re4 {[%clk
0:00:59.9]} 31. Qd3 {[%clk 0:00:11.4]} 31... e2 {[%clk 0:00:57.4]} 32. Re1
{[%clk 0:00:10.6]} 32... Re3 {[%clk 0:00:57.1]} 33. Qf5 {[%clk 0:00:08.8]} 33...
R8e5 {[%clk 0:00:50.7]} 34. Qc8 {[%clk 0:00:05.8]} 34... Qxc8 {[%clk 0:00:47.5]}
35. Rxc8 {[%clk 0:00:04.6]} 35... Rxh3 {[%clk 0:00:45.4]} 36. Nd4 {[%clk
0:00:02.5]} 36... Rd3 {[%clk 0:00:36.7]} 37. Nc6 {[%clk 0:00:02]} 37... Rd1+
{[%clk 0:00:35.4]} 0-1

[Event "Early-Titled-Tuesday-Blitz-November-28-2023"]
[Site "Chess.com"]
[Date "2023.11.28"]
[Round "1"]
[White "Mourinho_Jose"]
[Black "akanga001"]
[Result "1-0"]
[WhiteElo "2535"]
[BlackElo "2014"]
[TimeControl "180+1"]
[EndTime "8:07:07 PST"]
[Termination "Mourinho_Jose won by checkmate"]

1. Nf3 {[%clk 0:03:00.6]} 1... d5 {[%clk 0:02:52.8]} 2. g3 {[%clk 0:03:00.6]}
2... g6 {[%clk 0:02:44.4]} 3. Bg2 {[%clk 0:03:00.7]} 3... Bg7 {[%clk 0:02:31.6]}
4. d4 {[%clk 0:03:01.3]} 4... Nf6 {[%clk 0:02:30.9]} 5. c4 {[%clk 0:03:01]} 5...
Ne4 {[%clk 0:02:29.4]} 6. cxd5 {[%clk 0:02:46.9]} 6... Qxd5 {[%clk 0:02:28.7]}
7. O-O {[%clk 0:02:47.1]} 7... Qd8 {[%clk 0:02:25.7]} 8. Nc3 {[%clk 0:02:47.1]}
8... Nxc3 {[%clk 0:02:24.9]} 9. bxc3 {[%clk 0:02:48]} 9... c6 {[%clk 0:02:24.9]}
10. e4 {[%clk 0:02:47.8]} 10... O-O {[%clk 0:02:24.6]} 11. h3 {[%clk 0:02:47.7]}
11... Nd7 {[%clk 0:02:22.5]} 12. Rb1 {[%clk 0:02:48]} 12... Nb6 {[%clk
0:02:20.6]} 13. Re1 {[%clk 0:02:44.2]} 13... Be6 {[%clk 0:02:19.7]} 14. a4
{[%clk 0:02:39.1]} 14... Qc8 {[%clk 0:01:48.8]} 15. Kh2 {[%clk 0:02:35.2]} 15...
h6 {[%clk 0:01:38.7]} 16. a5 {[%clk 0:02:29.6]} 16... Nc4 {[%clk 0:01:37.9]} 17.
d5 {[%clk 0:02:30]} 17... cxd5 {[%clk 0:01:35.3]} 18. exd5 {[%clk 0:02:30.9]}
18... Rd8 {[%clk 0:01:35.3]} 19. Nd4 {[%clk 0:02:18.6]} 19... Bxd5 {[%clk
0:01:30.2]} 20. Rxe7 {[%clk 0:02:18.4]} 20... Bxg2 {[%clk 0:01:25.9]} 21. Kxg2
{[%clk 0:02:19.3]} 21... Qc6+ {[%clk 0:00:54.9]} 22. Qf3 {[%clk 0:01:54.5]}
22... Qxf3+ {[%clk 0:00:48.1]} 23. Kxf3 {[%clk 0:01:55.4]} 23... b6 {[%clk
0:00:45.3]} 24. axb6 {[%clk 0:01:50.7]} 24... axb6 {[%clk 0:00:45.3]} 25. Nc6
{[%clk 0:01:45.8]} 25... Rd3+ {[%clk 0:00:43.3]} 26. Be3 {[%clk 0:01:44.6]}
26... Rxc3 {[%clk 0:00:39.1]} 27. Nb4 {[%clk 0:01:25.7]} 27... Raa3 {[%clk
0:00:36.2]} 28. Rd1 {[%clk 0:01:08.5]} 28... Ne5+ {[%clk 0:00:32]} 29. Kg2
{[%clk 0:01:06.2]} 29... Nc4 {[%clk 0:00:29.1]} 30. Nd5 {[%clk 0:01:05.9]} 30...
Rc2 {[%clk 0:00:26.6]} 31. Bxb6 {[%clk 0:00:53.8]} 31... Nxb6 {[%clk 0:00:24.7]}
32. Nxb6 {[%clk 0:00:53.8]} 32... Raa2 {[%clk 0:00:24.9]} 33. Rd8+ {[%clk
0:00:46]} 33... Kh7 {[%clk 0:00:24.6]} 34. Rxf7 {[%clk 0:00:45.4]} 34... g5
{[%clk 0:00:23.5]} 35. Rdd7 {[%clk 0:00:44.5]} 35... Kg6 {[%clk 0:00:21.9]} 36.
Rxg7+ {[%clk 0:00:44.8]} 36... Kh5 {[%clk 0:00:21.7]} 37. Rgf7 {[%clk 0:00:43]}
37... Rab2 {[%clk 0:00:20.5]} 38. Nd5 {[%clk 0:00:42.2]} 38... Rd2 {[%clk
0:00:19.3]} 39. Ne3 {[%clk 0:00:34.2]} 39... Re2 {[%clk 0:00:18.3]} 40. Rf6
{[%clk 0:00:31.1]} 40... Rxe3 {[%clk 0:00:14.5]} 41. g4+ {[%clk 0:00:31.2]}
41... Kh4 {[%clk 0:00:12.1]} 42. Rxh6# {[%clk 0:00:32.1]} 1-0

[Event "Early-Titled-Tuesday-Blitz-November-28-2023"]
[Site "Chess.com"]
[Date "2023.11.28"]
[Round "1"]
[White "Niilo1"]
[Black "GatoRojo150"]
[Result "0-1"]
[WhiteElo "2278"]
[BlackElo "2606"]
[TimeControl "180+1"]
[EndTime "8:07:08 PST"]
[Termination "GatoRojo150 won by checkmate"]

1. e4 {[%clk 0:03:00.9]} 1... e5 {[%clk 0:02:58.3]} 2. Nf3 {[%clk 0:03:00.9]}
2... Nc6 {[%clk 0:02:57.9]} 3. Nc3 {[%clk 0:03:01]} 3... Nf6 {[%clk 0:02:57.6]}
4. Bb5 {[%clk 0:03:01.5]} 4... Nd4 {[%clk 0:02:57.6]} 5. Bc4 {[%clk 0:03:01.4]}
5... Bc5 {[%clk 0:02:57.2]} 6. d3 {[%clk 0:03:01.4]} 6... d6 {[%clk 0:02:50.7]}
7. Na4 {[%clk 0:02:59.9]} 7... b5 {[%clk 0:02:45.8]} 8. Nxd4 {[%clk 0:02:50.6]}
8... bxc4 {[%clk 0:02:41.9]} 9. Nxc5 {[%clk 0:02:38.2]} 9... exd4 {[%clk
0:02:39.2]} 10. Na4 {[%clk 0:02:37.9]} 10... Bd7 {[%clk 0:02:32.5]} 11. b3
{[%clk 0:02:28.9]} 11... Bxa4 {[%clk 0:02:31.8]} 12. bxa4 {[%clk 0:02:29.8]}
12... c3 {[%clk 0:02:27.5]} 13. O-O {[%clk 0:02:25.8]} 13... Nd7 {[%clk
0:02:16.6]} 14. f4 {[%clk 0:02:15.3]} 14... O-O {[%clk 0:02:15.9]} 15. Ba3
{[%clk 0:01:32]} 15... c5 {[%clk 0:02:13.5]} 16. e5 {[%clk 0:01:22.1]} 16... Qc7
{[%clk 0:02:02.6]} 17. exd6 {[%clk 0:01:13.4]} 17... Qxd6 {[%clk 0:02:03.5]} 18.
Qf3 {[%clk 0:01:13.7]} 18... Rae8 {[%clk 0:01:57.3]} 19. Rab1 {[%clk 0:01:08.6]}
19... Nb6 {[%clk 0:01:57.1]} 20. Rb5 {[%clk 0:00:52.9]} 20... Nxa4 {[%clk
0:01:47.4]} 21. Ra5 {[%clk 0:00:50.6]} 21... Qd7 {[%clk 0:01:43.2]} 22. Bxc5
{[%clk 0:00:33.2]} 22... Re3 {[%clk 0:01:35.3]} 23. Qf2 {[%clk 0:00:18.2]} 23...
Nxc5 {[%clk 0:01:26.3]} 24. Rxc5 {[%clk 0:00:19.1]} 24... Rfe8 {[%clk
0:01:26.4]} 25. f5 {[%clk 0:00:05.5]} 25... f6 {[%clk 0:01:20.7]} 26. Qf4 {[%clk
0:00:04.4]} 26... Re2 {[%clk 0:01:12]} 27. Rc7 {[%clk 0:00:04.2]} 27... Qd5
{[%clk 0:01:07.8]} 28. Qg3 {[%clk 0:00:03.8]} 28... R8e7 {[%clk 0:01:05.5]} 29.
Rxe7 {[%clk 0:00:04.4]} 29... Rxe7 {[%clk 0:01:06.2]} 30. Rb1 {[%clk 0:00:05.3]}
30... Qe5 {[%clk 0:00:53.2]} 31. Qf3 {[%clk 0:00:03]} 31... Kf7 {[%clk
0:00:47.9]} 32. Qa8 {[%clk 0:00:01.9]} 32... Qe3+ {[%clk 0:00:46.9]} 33. Kf1
{[%clk 0:00:02.1]} 33... Qf4+ {[%clk 0:00:46.5]} 34. Kg1 {[%clk 0:00:02.5]}
34... Qxf5 {[%clk 0:00:46.1]} 35. h3 {[%clk 0:00:02.5]} 35... Qe5 {[%clk
0:00:45.5]} 36. Rb8 {[%clk 0:00:02.4]} 36... Qe1+ {[%clk 0:00:44.1]} 37. Kh2
{[%clk 0:00:03.1]} 37... Qe5+ {[%clk 0:00:43.9]} 38. Kg1 {[%clk 0:00:03.6]}
38... Qf4 {[%clk 0:00:41.5]} 39. Rf8+ {[%clk 0:00:02.6]} 39... Kg6 {[%clk
0:00:41.9]} 40. Qc8 {[%clk 0:00:01.6]} 40... Re1# {[%clk 0:00:41.3]} 0-1

[Event "Early-Titled-Tuesday-Blitz-November-28-2023"]
[Site "Chess.com"]
[Date "2023.11.28"]
[Round "1"]
[White "FontVella8"]
[Black "Crasmus"]
[Result "1-0"]
[WhiteElo "2604"]
[BlackElo "2271"]
[TimeControl "180+1"]
[EndTime "8:07:09 PST"]
[Termination "FontVella8 won by resignation"]

1. e4 {[%clk 0:03:00.9]} 1... c5 {[%clk 0:03:00.9]} 2. Nf3 {[%clk 0:03:00.9]}
2... e6 {[%clk 0:03:01.4]} 3. d4 {[%clk 0:03:01.4]} 3... cxd4 {[%clk 0:03:02.3]}
4. Nxd4 {[%clk 0:03:02.2]} 4... a6 {[%clk 0:03:02.9]} 5. Bd3 {[%clk 0:03:01.8]}
5... Qc7 {[%clk 0:03:03.2]} 6. O-O {[%clk 0:03:01.7]} 6... Nf6 {[%clk
0:03:03.8]} 7. Qe2 {[%clk 0:03:02]} 7... h5 {[%clk 0:03:04.3]} 8. c4 {[%clk
0:02:36.4]} 8... Ng4 {[%clk 0:03:02.1]} 9. g3 {[%clk 0:02:35.6]} 9... Bc5 {[%clk
0:03:01.1]} 10. Nb3 {[%clk 0:02:26.6]} 10... Ba7 {[%clk 0:02:53]} 11. Nc3 {[%clk
0:02:23.6]} 11... Nc6 {[%clk 0:02:52.2]} 12. c5 {[%clk 0:02:13.7]} 12... Nce5
{[%clk 0:02:48.6]} 13. h3 {[%clk 0:02:05.5]} 13... Nxd3 {[%clk 0:02:32.8]} 14.
Qxd3 {[%clk 0:02:04.8]} 14... Ne5 {[%clk 0:02:25.6]} 15. Qd1 {[%clk 0:01:43.4]}
15... Bxc5 {[%clk 0:02:23.1]} 16. Nxc5 {[%clk 0:01:42.9]} 16... Qxc5 {[%clk
0:02:23.1]} 17. Be3 {[%clk 0:01:42.7]} 17... Qe7 {[%clk 0:01:53.2]} 18. Qa4
{[%clk 0:01:23]} 18... h4 {[%clk 0:01:33.3]} 19. g4 {[%clk 0:01:19]} 19... O-O
{[%clk 0:01:33.3]} 20. Rad1 {[%clk 0:01:16.6]} 20... b5 {[%clk 0:01:27.5]} 21.
Nxb5 {[%clk 0:01:10.2]} 21... d5 {[%clk 0:01:27.7]} 22. Nc3 {[%clk 0:00:36.2]}
22... Bd7 {[%clk 0:01:14.4]} 23. Qc2 {[%clk 0:00:32.4]} 23... dxe4 {[%clk
0:00:58.7]} 24. Qxe4 {[%clk 0:00:31]} 24... Ng6 {[%clk 0:00:54.7]} 25. Rd2
{[%clk 0:00:19.3]} 25... Rac8 {[%clk 0:00:52.8]} 26. Rfd1 {[%clk 0:00:19.1]}
26... Bc6 {[%clk 0:00:53]} 27. Qd4 {[%clk 0:00:17.2]} 27... Rfd8 {[%clk
0:00:49.7]} 28. Qxd8+ {[%clk 0:00:15.1]} 28... Rxd8 {[%clk 0:00:49.5]} 29. Rxd8+
{[%clk 0:00:16]} 29... Kh7 {[%clk 0:00:50.1]} 30. Rc8 {[%clk 0:00:12]} 30... Bf3
{[%clk 0:00:45.8]} 31. Rdd8 {[%clk 0:00:11]} 31... Qb4 {[%clk 0:00:41.4]} 32.
Rd2 {[%clk 0:00:04.9]} 32... Bg2 {[%clk 0:00:34.6]} 33. Kxg2 {[%clk 0:00:01.6]}
33... Qb7+ {[%clk 0:00:34.7]} 34. Kg1 {[%clk 0:00:02.4]} 34... Qxc8 {[%clk
0:00:35.2]} 35. Ne4 {[%clk 0:00:02.6]} 35... Qb7 {[%clk 0:00:34.7]} 36. Ng5+
{[%clk 0:00:02.6]} 36... Kg8 {[%clk 0:00:33]} 37. Rd8+ {[%clk 0:00:03.2]} 37...
Nf8 {[%clk 0:00:33.5]} 38. Bc5 {[%clk 0:00:03.8]} 38... g6 {[%clk 0:00:27.8]}
39. Rxf8+ {[%clk 0:00:04.2]} 39... Kg7 {[%clk 0:00:28]} 40. Rxf7+ {[%clk
0:00:05.1]} 40... Kg8 {[%clk 0:00:27.4]} 41. Rxb7 {[%clk 0:00:04.6]} 1-0